Cogmind - Beta 14 @@@ ROGUE MODE // 2025.03.31 @ 21:27:35 Player: golanco Result: Destroyed by G-34 Mercenary with Small Laser Performance ------------- Evolutions (0) 0 Regions Visited (1) 200 Robots Destroyed (15) 75 Value Destroyed (392) 392 Prototype IDs (0) 0 Alien Tech Used (0) 0 Bonus (0) 0 TOTAL SCORE: 667 Bonus ------- None Cogmind --------- Core Integrity 0/250 Matter 245/300 Energy 93/100 System Corruption 0% Temperature Cool (59) Movement Core (1400) Ox27 Location -10/Materials Parts ------- > --- POWER (1) -------- (None) > --- PROPULSION (2) --- (None) > --- UTILITY (2) ------ Huge Storage Unit Signal Interpreter > --- WEAPON (2) ------- Small Laser Grenade Launcher > --- INVENTORY (25) --- Ion Engine Light Ion Engine Light Treads Hacking Suite Peak State ------------ > --- POWER ------------ Ion Engine > --- PROPULSION ------- Light Treads Light Treads > --- UTILITY ---------- Small Storage Unit Huge Storage Unit > --- WEAPON ----------- Small Laser Assault Rifle > --- INVENTORY -------- Ion Engine Light Ion Engine Hover Unit Small Laser Grenade Launcher [Rating: 7] Favorites ----------- Power Ion Engine Engine Ion Engine Propulsion Light Treads Treads Light Treads Utility Small Storage Unit Storage Small Storage Unit Processor Signal Interpreter Weapon Small Laser Energy Gun Small Laser Ballistic Gun Assault Rifle Launcher Grenade Launcher Build | -11 -10 ------- Run | Yrd Mat Slots Evolved . | . . Power . | . . Propulsion . | . . Utility . | . . Weapon . | . . Parts Attached 11 | 6 5 Power 1 | 1 . Engine 1 | 1 . Core . | . . Reactor . | . . Propulsion 2 | 2 . Treads 2 | 2 . Leg . | . . Wheel . | . . Hover . | . . Flight . | . . Utility 3 | 1 2 Device . | . . Storage 2 | 1 1 Processor 1 | . 1 Hackware . | . . Protection . | . . Artifact . | . . Weapon 5 | 2 3 Energy Gun 3 | 2 1 Energy Cannon . | . . Ballistic Gun 1 | . 1 Ballistic Cannon . | . . Launcher 1 | . 1 Special Weapon . | . . Impact Weapon . | . . Slashing Weapon . | . . Piercing Weapon . | . . Special Melee Weapon . | . . Unidentified Prototypes . | . . Parts Lost 5 | . 5 Power 1 | . 1 Propulsion 2 | . 2 Utility . | . . Weapon 2 | . 2 Highest Loss Streak 5 | . 5 To Critical Strikes . | . . Average Slot Usage (%) 89 | . 89 Engine 12 | . 12 Treads 27 | . 27 Storage 14 | . 14 Processor 6 | . 6 Energy Gun 14 | . 14 Ballistic Gun 13 | . 13 Peak Build Rating 7 | 6 7 Average Rating 6 | 4 6 On Entrance 3 | . 6 Naked Turns . | . . Heaviest Build 88 | 12 88 Greatest Support 40 | 40 40 Greatest Overweight (x) 2 | 1 2 Average Overweight (x) . | . . Largest Inventory Capacity 25 | 8 25 Average Capacity 14 | 7 16 Most Carried 6 | 2 6 Average Carried 3 | . 4 Final Capacity 25 | 8 25 Final Carried 4 | 2 4 Class Distribution -------------------- 100% | Mutant Dominant Class ---------------- Mutant | -10/Materials Resources | -11 -10 ----------- Run | Yrd Mat Matter Collected 426 | 226 200 Remotely . | . . Salvage Created 507 | . 507 Parts 34 | . 34 Haulers Intercepted 2 | . 2 Recyclers Shooed 2 | . 2 Parts Field Recycled . | . . Retrieved Matter . | . . Parts Self-Destructed . | . . Prevented . | . . Kills | -11 -10 ------- Run | Yrd Mat Combat Hostiles Destroyed 9 | . 9 Guns 8 | . 8 AOE 1 | . 1 Classes Destroyed 5 | . 5 Worker 2 | . 2 Builder 1 | . 1 Hauler 2 | . 2 Operator 1 | . 1 Grunt 9 | . 9 Best Kill Streak 4 | . 4 Combat Bots Only 3 | . 3 Max Kills in Single Turn 2 | . 2 Gunslinging . | . . Exploded 1 | . 1 Melee . | . . Uniques/NPCs Destroyed . | . . Combat | -11 -10 -------- Run | Yrd Mat Hostile Shots Fired 72 | . 72 Missed 14 | . 14 Damage Taken 893 | . 893 Core 253 | . 253 Absorbed by Shields . | . . Core Remaining (%) 100 | 100 . Volleys Fired 54 | . 54 Largest 2 | . 2 Hottest 70 | . 70 Shots Fired 105 | . 105 Gun 101 | . 101 Cannon . | . . Launcher 4 | . 4 Special . | . . Kinetic 48 | . 48 Thermal 53 | . 53 Explosive 4 | . 4 Electromagnetic . | . . Robot Hit Streak 8 | . 8 Robot Miss Streak 4 | . 4 Penetration Max . | . . Secondary Targets 2 | . 2 Max Gunslinging Chain 1 | . 1 Shots Hit Robots 63 | . 63 Core Hits 28 | . 28 Critical Kills 1 | . 1 Critical Parts Destroyed . | . . Critical Strikes 1 | . 1 Destroy 1 | . 1 Melee Attacks . | . . Impact . | . . Slashing . | . . Piercing . | . . Sneak Attacks . | . . Combat Hostiles . | . . Follow-up Attacks . | . . Damage Inflicted 865 | . 865 Guns 725 | . 725 Cannons . | . . Explosions 140 | . 140 Melee . | . . Ramming . | . . Kinetic 375 | . 375 Thermal 350 | . 350 Explosive 140 | . 140 Electromagnetic . | . . Impact . | . . Slashing . | . . Piercing . | . . Highest Corruption . | . . Average Corruption . | . . Corruption Purged . | . . Corruption Blocked . | . . Overload Shots . | . . Overflow Damage . | . . Projectiles . | . . Explosions . | . . Melee . | . . Knockbacks . | . . Impact . | . . Kinetic . | . . Secondary . | . . Self-Inflicted Damage 141 | . 141 Shots 3 | . 3 Rammed . | . . Targets Rammed . | . . Kicked . | . . Crushed . | . . Highest Temperature 90 | . 90 Average Temperature 35 | . 35 Received Heat Transfer 474 | . 474 Siege Activations . | . . Robots Corrupted . | . . Combat Hostiles . | . . Parts Fried . | . . Impact Corruptions . | . . Robots Melted . | . . Combat Hostiles . | . . Parts Melted . | . . Heat Transferred 800 | . 800 Parts Sabotaged . | . . Parts Stolen . | . . Parts Stripped . | . . Power Chain Reactions . | . . Alert | -11 -10 ------- Run | Yrd Mat Peak Influence 188 | . 188 Initial . | . . Average 28 | . 33 Maximum Alert Level . | . . Low Security (%) 100 | 100 100 Level 1 . | . . Level 2 . | . . Level 3 . | . . Level 4 . | . . Level 5 . | . . High Security . | . . Max Security . | . . Squads Dispatched 2 | . 2 Investigation . | . . Extermination . | . . Reinforcement 2 | . 2 Assault . | . . Garrison . | . . Intercept . | . . Searches Triggered . | . . Construction Impeded . | . . Haulers Reinforced . | . . Active Scanning Responses . | . . Cargo Convoy Interrupts . | . . Stealth | -11 -10 --------- Run | Yrd Mat Distress Signals 1 | . 1 Communications Jammed . | . . Distress Signals . | . . Times Spotted 19 | . 19 Peak Tracking Total 5 | . 5 Tactical Retreats 2 | . 2 Traps | -11 -10 ------- Run | Yrd Mat Traps Triggered . | . . Indirectly . | . . Trap Hack Attempts . | . . Triggered . | . . Disarmed . | . . Reprogrammed . | . . Reused . | . . Traps Extracted . | . . Installed . | . . Triggered . | . . Machines | -11 -10 ---------- Run | Yrd Mat Machines Disabled 4 | . 4 Max in Single Turn 2 | . 2 Machines Repaired . | . . Machines Dismantled . | . . Machines Sabotaged . | . . Overloaded Fab Kills . | . . Hacking | -11 -10 --------- Run | Yrd Mat Machines Accessed 2 | . 2 Terminals 2 | . 2 Fabricators . | . . Repair Stations . | . . Recycling Units . | . . Scanalyzers . | . . Garrison Access . | . . Total Hacks 4 | . 4 Successful 2 | . 2 Failed 2 | . 2 Catastrophic . | . . Database Lockouts . | . . Manual . | . . Terminals 4 | . 4 Fabricators . | . . Repair Stations . | . . Recycling Units . | . . Scanalyzers . | . . Garrison Access . | . . Terminal Hacks 2 | . 2 Emergency Access Points 1 | . 1 Unreport Threat 1 | . 1 Fabricator Hacks . | . . Repair Station Hacks . | . . Recycling Unit Hacks . | . . Scanalyzer . | . . Garrison Access Hacks . | . . Unauthorized Hacks . | . . Terminals . | . . Fabricators . | . . Repair Stations . | . . Recycling Units . | . . Scanalyzers . | . . Garrison Access . | . . Data Cores Recovered . | . . Used . | . . Hacking Detections 2 | . 2 Full Trace Events . | . . Feedback Events . | . . Feedback Blocked . | . . Robot Schematics Acquired . | . . Robots Built . | . . Authchips . | . . Time . | . . Total Robot Build Rating . | . . Part Schematics Acquired . | . . Parts Built . | . . Authchips . | . . Time . | . . Total Part Build Rating . | . . Parts Repaired . | . . Time . | . . Parts Recycled . | . . Recycled Matter . | . . Retrieved Matter . | . . Retrieved Components . | . . Parts Scanalyzed . | . . Part Schematics Acquired . | . . Parts Damaged . | . . Bothacking | -11 -10 ------------ Run | Yrd Mat Used RIF Installer . | . . Robots Hacked . | . . Non-combat . | . . Combat . | . . Robot Hacks Applied . | . . Relay Couplers Released . | . . Fabnet Peak Effective % . | . . Robots Rewired . | . . Allies Hacked . | . . Hacks Repelled . | . . Allies | -11 -10 -------- Run | Yrd Mat Total Allies . | . . Largest Group . | . . Highest-Rated Group . | . . Highest-Rated Ally . | . . Total Orders . | . . Ally Attacks . | . . Total Damage . | . . Kills . | . . Allies Corrupted . | . . Allies Melted . | . . Intel | -11 -10 ------- Run | Yrd Mat Robot Analysis Total . | . . Derelict Logs Recovered . | . . Drone Launches . | . . Drone Recoveries . | . . Exploration | -11 -10 ------------- Run | Yrd Mat Turns Passed 580 | 80 500 Spaces Moved 208 | 49 159 Core 9 | 9 . Treads 199 | 40 159 Legs . | . . Wheels . | . . Hover . | . . Flight . | . . Fastest Speed 50 | 50 160 Average Speed 190 | 143 205 Slowest Speed 320 | 160 320 Overloaded Moves . | . . Propulsion Burnouts . | . . Robots Hopped . | . . Cave-ins Triggered . | . . Exploration Rate (%) 23 | 5 42 Regions Visited 1 Branch Regions . Pre-discovered Areas . | . . Known Exits Taken . | . . Unknown Exits Taken 1 | 1 . Scrap Searched . | . . Spaces Dug . | . . Terrain Destroyed 64 | . 64 Melee . | . . Projectile . | . . AOE 64 | . 64 Terrain Rammed . | . . Walls Destroyed . | . . Machines Disabled . | . . Actions | -11 -10 --------- Run | Yrd Mat Total 284 | 56 228 Wait 3 | . 3 Move 207 | 48 159 Hop . | . . Pick Up 7 | 2 5 Fast Attach 8 | 6 2 Attach 2 | . 2 Detach . | . . Swap 1 | . 1 Drop 2 | . 2 Fire 54 | . 54 Melee . | . . Ram . | . . Kick . | . . Crush . | . . Escape Stasis . | . . Rewire . | . . Trap . | . . Miscellaneous . | . . Route ------- -11/Scrapyard -10/Materials (discovered 1 exit: [*Min]) History --------- Turn | Location | Event 11 | -11/Scrapyard | Discovered new exit (range 15) 81 | -11/Scrapyard | Entered Materials 311 | -10/Materials | Build established: Mutant 566 | -10/Materials | Core integrity fell below 50% 572 | -10/Materials | Discovered new exit (range 8) 573 | -10/Materials | Core integrity fell below 20% 581 | -10/Materials | Destroyed by G-34 Mercenary with Small Laser Last Messages --------------- Acquired 3 matter. Acquired 1 matter. Assault Rifle destroyed. Lgt. Treads destroyed. G-34 Mercenary destroyed. Critical hit (Burn: +37). Sml. Laser destroyed. G-47 Trooper destroyed. Nuclear Reactor explodes. EXIT=FOUND Lgt. Treads destroyed. Machine disabled. U-05 Engineer lays Concrete. U-05 Engineer builds a Wall. G-47 Trooper destroyed. Machine disabled. U-05 Engineer destroyed. U-05 Engineer lays Concrete. K-01 Serf collects debris. U-05 Engineer lays Concrete. Map ----- +----------------------------------------------------+ | ???????????????????????????????????? ####### ## | | ??????????????????????????????????????????????# ?# | | ??????????????????????????????????????????????# ## | | ??????????????????????????????????????????????# ## | | ??????????????????????????????????????????????# ## | | ??????????????????????????????????????????????# | | ??????????????????????????????????????????????# | | ?????????????????????????????????????????????## | | ?????????????????????????????????????????????# | | ?????????????????????????????????????????????# | | ??????????????????? ##???????????????????????+ # | | ?????????????????# ???????????????????????# # | | ?????????????????# ???????????? ?????????## # | | ?????????????????# ?????????? ???????# | | ?????????????????# ???????? ???????# | | ?????????????????# ######### ??????# | | ?????????????????# # # ??????# | | ?????????????????# ?????# | | ?????????????????# k < ?????## # | | ?????????????????# ?? ??????# # | | ????????#????????# # #???# ?????# # | | ???????? ##### # "! !" ##??# ?????# | | ???????# !% !"" #### ###### | | ???????# !!= # ^ | | ???????# u%*=% # | | ??????????????# #####%! @ | | ????????????????????#/ ######+#####+## | | ????????????????????#!# #???# #? | | ????????????????????# ## #??#"" #? | | ????????????????????# ## #??#"Y #? | | ????????????????????# ## #??#"" #? | | ????????????????????# ### = ##??# #? | | ????????????????????# #? = #???# """ #? | | ??????????????####### ## #???# """ #? | | ???????# =/ g # ####### """ #? | | ??????????????#######+## + #? | | ????????????????????????#### %##################? | | ???????????????????????????# #?????????????????? | | ???????????????????????????# #??????###########? | | ???????????????????????????# #??????# #? | | ???????????????????????????# ######## #? | | ???????????????????????????# # #? | | ???????????????????????????# # #? | | ???????????????????????????# # #? | | ???????????????????????########+### + #? | | ???????????????????????# ## # != #? | | ???????????????????????#"" ## # #? | | ???????????????????????#"T ## ###########? | | ???????????????????????#"" # ??????????? | | ???????????????????????# !""" # ?????????? | +----------------------------------------------------+ Best States ------------- Heat Dissipation 25 Energy Generation 10 Energy Capacity 250 Matter Stores 300 Matter Capacity 300 Sight Range 16 Terrain Scan Density 10 Evasion (%) 40 Recoil Reduction 2 Item Schematics ----------------- None Robot Schematics ------------------ None Fabricated ------------ Nothing Alien Tech Used ----------------- None Achievements -------------- None Challenges ------------ None Game ------ Seed ServoCoilSink Manual? 0 Play Time 00:06:37 Cumulative 34.4 hours Start 2025.03.31 @ 21:24:00 End 2025.03.31 @ 21:27:35 Sessions 1 Manual Loads 0 Difficulty Rogue Special Mode None Game No. 96 Rogue 96 Adventurer 0 Explorer 0 Win Type - Total 0 Types 0/0/0/0/0/0/0/0/0 Lore% 16 Gallery% 24 Achievement% 26 Wizard Run 0 Options --------- Layout 1 ASCII 0 Keyboard 0 Movement Mouse Keybinds 0 Fullscreen 1 Font 36/Smallcaps Map View 50x40 Zoom Use 0% Tactical HUD 0 Map Filters NONE Filters NONE Steam 1 RUN: cd543232-9b6b-48e2-9451-ae60502bf169